bitfinex-derivatives/quotes_SOLF0:USTF0_20241120
["timestamp","ask_amount","ask_price","bid_price","bid_amount"]
[1732070048111,2.1422,233.05,233.02,10.5688018]
[1732070051014,2.92,233.16,233.02,10.5688018]
[1732070051217,4.2808,233.24,233.08,10.5688018]
[1732070051414,10.5688018,233.22,233.08,10.5688018]
[1732070051710,8.20273187,233.21,233.08,10.5688018]
[1732070052409,2.1416,233.11,233.08,10.5688018]
[1732070052613,8.20273187,233.21,233.08,10.5688018]
[1732070052917,2.1414,233.13,233.08,10.5688018]
[1732070053508,2.1412,233.15,233.11,10.5688018]
[1732070053707,2.92,233.2,233.11,10.5688018]
[1732070055315,2.92,233.2,233.08,10.5688018]
[1732070055716,2.1416,233.11,233.08,10.5688018]
[1732070056016,2.92,233.2,233.08,10.5688018]
[1732070056214,2.1415,233.12,233.08,10.5688018]
[1732070056418,2.1415,233.12,233.05,4.5911]
[1732070056419,2.92,233.2,233.11,10.5688018]
[1732070056817,174.5499852,233.31,233.14,10.5688018]
[1732070056818,2.141,233.18,233.14,10.5688018]
[1732070057014,2.92,233.23,233.14,10.5688018]
[1732070057213,2.92,233.23,233.11,10.5688018]
[1732070057419,2.1408,233.2,233.11,10.5688018]
[1732070057620,2.92,233.23,233.11,10.5688018]
[1732070058016,2.1408,233.2,233.11,10.5688018]
[1732070058314,2.92,233.23,233.11,10.5688018]
[1732070059017,2.92,233.23,233.05,15.1599018]
[1732070059018,10.5688018,233.19,233.05,15.1599018]
[1732070059213,2.1416,233.11,233.05,17.3019018]
[1732070059414,2.92,233.23,233.08,10.5688018]
[1732070059621,2.1413,233.14,233.08,10.5688018]
[1732070059816,2.92,233.23,233.09,2.1417]
[1732070062126,2.92,233.23,233.11,10.5688018]
[1732070062526,2.1413,233.14,233.11,10.5688018]
[1732070063521,2.1414,233.13,233.11,10.5688018]
[1732070063745,2.92,233.22,233.11,10.5688018]
[1732070065324,2.1413,233.14,233.11,10.5688018]
[1732070067531,2.92,233.22,233.11,10.5688018]
[1732070067726,2.141,233.17,233.14,10.5688018]
[1732070067922,2.92,233.22,233.14,10.5688018]
[1732070068429,2.92,233.22,233.05,4.5911]
[1732070068430,209.08617557,233.31,233.17,10.5688018]
[1732070068623,12.64053679,233.3,233.2,10.5688018]
[1732070068822,9.98012035,233.29,233.17,10.5688018]
[1732070069027,10.5688018,233.25,233.11,10.5688018]
[1732070069223,10.34271,233.24,233.11,10.5688018]
[1732070069424,2.92,233.23,233.11,10.5688018]
[1732070070035,2.1413,233.14,233.11,10.5688018]
[1732070072831,8.22102348,233.22,233.11,10.5688018]
[1732070073036,2.92,233.23,233.14,10.5688018]
[1732070074032,2.92,233.26,233.14,12.7101018]
[1732070074227,8.21368078,233.25,233.14,12.7101018]
[1732070075331,8.21368078,233.25,233.14,10.5688018]
[1732070075830,2.92,233.26,233.14,10.5688018]
[1732070076131,2.1409,233.19,233.14,10.5688018]
[1732070076327,2.92,233.26,233.14,10.5688018]
[1732070076527,2.92,233.27,233.16,2.1411]
[1732070077532,2.1407,233.2,233.14,10.5688018]
[1732070077728,2.1407,233.2,233.15,2.1411]
[1732070078133,2.92,233.27,233.17,10.5688018]
[1732070078350,2.92,233.27,233.17,12.7097018]
[1732070078730,2.92,233.27,233.15,3.0475]
[1732070079230,2.1408,233.19,233.15,3.0475]
[1732070079430,2.92,233.27,233.15,3.0475]
[1732070080538,2.141,233.17,233.15,3.0475]
[1732070081734,2.141,233.17,233.14,10.5688018]
[1732070082741,2.141,233.17,233.16,6.77293542]
[1732070084439,8.21642934,233.23,233.16,6.77293542]
[1732070084637,6.77293542,233.24,233.16,6.77293542]
[1732070084855,8.21663245,233.23,233.16,6.77293542]
[1732070086040,2.92,233.27,233.14,2.1413]
[1732070086041,6.77293542,233.26,233.18,6.77293542]
[1732070086342,18.1931502,233.25,233.18,6.77293542]
[1732070086542,8.21716734,233.24,233.18,6.77293542]
[1732070086739,6.77293542,233.26,233.18,6.77293542]
[1732070086942,8.21671034,233.25,233.18,6.77293542]
[1732070087147,18.19247827,233.25,233.18,6.77293542]
[1732070087340,2.1409,233.19,233.18,6.77293542]
[1732070088444,2.1407,233.21,233.18,6.77293542]
[1732070088646,8.21605456,233.24,233.2,6.77293542]
[1732070088845,9.69293542,233.27,233.2,6.77293542]
[1732070089046,18.1887048,233.26,233.2,6.77293542]
[1732070089244,8.21511581,233.25,233.2,6.77293542]
[1732070089436,8.21511581,233.24,233.2,6.77293542]
[1732070089637,9.69293542,233.27,233.2,6.77293542]
[1732070089842,2.1406,233.21,233.2,6.77293542]
[1732070090844,18.18414696,233.25,233.2,6.77293542]
[1732070091045,174.5499852,233.28,233.24,6.77293542]
[1732070091348,5.9075,233.31,233.26,6.77293542]
[1732070091548,2.1401,233.27,233.26,6.77293542]
[1732070097864,2.1397,233.32,233.27,2.1401]
[1732070098152,18.19219256,233.36,233.3,6.77293542]
[1732070098357,18.19219256,233.35,233.33,6.77293542]
[1732070098555,8.21673047,233.34,233.33,6.77293542]
[1732070098756,8.21673047,233.37,233.33,6.77293542]
[1732070099056,8.21546523,233.36,233.33,6.77293542]
[1732070099263,2.9,233.4,233.33,6.77293542]
[1732070099958,8.21244102,233.39,233.33,6.77293542]
[1732070100261,2.9,233.4,233.35,6.77293542]
[1732070100771,2.1392,233.36,233.35,6.77293542]
[1732070101557,1.5605,233.45,233.35,6.77293542]
[1732070101558,2.139,233.39,233.35,6.77293542]
[1732070101759,8.20729213,233.44,233.38,6.77293542]
[1732070102262,2.139,233.39,233.38,6.77293542]
[1732070104061,2.1385,233.45,233.38,8.91203542]
[1732070104263,9.67293542,233.49,233.42,6.77293542]
[1732070104561,9.67293542,233.49,233.44,6.77293542]
[1732070104562,2.1384,233.46,233.44,6.77293542]
[1732070104762,2.9,233.49,233.44,6.77293542]
[1732070105158,8.18423893,233.48,233.44,6.77293542]
[1732070105368,6.77293542,233.51,233.44,6.77293542]
[1732070105558,8.17763277,233.5,233.46,6.77293542]
[1732070105860,2.9,233.52,233.46,6.77293542]
[1732070106059,2.1379,233.51,233.48,6.77293542]
[1732070106261,2.9,233.52,233.48,6.77293542]
[1732070106774,2.1382,233.48,233.44,10.55547525]
[1732070107465,8.16116569,233.56,233.47,10.55547525]
[1732070107662,2.9,233.57,233.47,10.55547525]
[1732070107857,2.19218937,233.59,233.47,10.55547525]
[1732070108059,2.9,233.61,233.5,10.55547525]
[1732070108466,7.5816,233.63,233.5,10.55547525]
[1732070108766,6.0235,233.63,233.53,10.55547525]
[1732070111066,2.1373,233.57,233.53,10.55547525]
[1732070114073,2.1373,233.57,233.51,2.1379]
[1732070114074,2.9,233.56,233.41,2.1387]
[1732070114269,2.9,233.56,233.42,12.07297525]
[1732070114776,2.1378,233.52,233.42,12.07297525]
[1732070114972,2.9,233.56,233.42,12.07297525]
[1732070114973,2.9,233.56,233.42,14.21167525]
[1732070115478,2.1378,233.52,233.42,14.21167525]
[1732070115673,2.9,233.56,233.45,12.69387525]
[1732070115873,2.9,233.56,233.45,10.55547525]
[1732070116069,2.9,233.56,233.48,10.55547525]
[1732070116474,2.9,233.56,233.42,1.5175]
[1732070116475,2.9,233.56,233.51,10.55547525]
[1732070116674,2.9,233.61,233.51,10.55547525]
[1732070118179,2.9,233.61,233.54,10.55547525]
[1732070119378,2.1372,233.58,233.54,10.55547525]
[1732070120875,2.1373,233.57,233.54,10.55547525]
[1732070121081,2.9,233.61,233.48,10.55547525]
[1732070121681,10.55547525,233.6,233.48,10.55547525]
[1732070121982,10.55547525,233.57,233.45,12.05077525]
[1732070122187,10.55547525,233.57,233.42,14.97297525]
[1732070122481,10.55547525,233.57,233.42,10.55547525]
[1732070122681,2.9,233.61,233.39,10.55547525]
[1732070122682,10.55547525,233.51,233.39,10.55547525]
[1732070122885,2.1386,233.43,233.39,10.55547525]
[1732070123078,2.1386,233.43,233.41,0.18489]
[1732070123879,6.024,233.5,233.41,0.18489]
[1732070123880,2.1385,233.45,233.41,0.18489]
[1732070124380,2.1383,233.46,233.41,0.18489]
[1732070124685,6.024,233.5,233.41,0.18489]
[1732070124981,2.1385,233.45,233.41,0.18489]
[1732070125278,6.024,233.5,233.41,0.18489]
[1732070126986,2.1387,233.42,233.41,0.18489]
[1732070127990,2.9,233.43,233.41,0.18489]
[1732070128183,3.124,233.5,233.41,0.18489]
[1732070128389,2.9,233.49,233.41,0.18489]
[1732070128591,3.124,233.5,233.42,10.55547525]
[1732070129190,2.9,233.51,233.42,10.55547525]
[1732070129587,2.1381,233.49,233.42,12.69417525]
[1732070130085,2.9,233.53,233.42,12.69417525]
[1732070130391,2.1381,233.49,233.42,12.69417525]
[1732070131590,2.1381,233.49,233.43,2.1386]
[1732070136981,2.138,233.51,233.45,10.55547525]
[1732070137184,1.0,233.56,233.48,10.55547525]
[1732070137185,2.9,233.56,233.48,10.55547525]
[1732070137388,13.68327525,233.63,233.48,10.55547525]
[1732070137584,2.1378,233.52,233.48,10.55547525]
[1732070138085,4.4271,233.62,233.48,10.55547525]
[1732070138388,4.4271,233.62,233.45,10.55547525]
[1732070138389,10.55547525,233.59,233.45,10.55547525]
[1732070139290,2.1375,233.55,233.45,10.55547525]
[1732070139487,2.9,233.54,233.48,10.55547525]
[1732070139692,2.9,233.57,233.48,10.55547525]
[1732070139997,2.1378,233.52,233.48,10.55547525]
[1732070140295,2.9,233.57,233.48,10.55547525]
[1732070141185,2.1376,233.55,233.48,10.55547525]
[1732070141388,2.9,233.57,233.48,10.55547525]
[1732070142287,12.08257525,233.62,233.48,10.55547525]
[1732070142489,2.1375,233.55,233.51,10.55547525]
[1732070143195,2.9,233.61,233.51,10.55547525]
[1732070144596,2.9,233.61,233.4,13.45547525]
[1732070144597,6.0078,233.63,233.54,10.55547525]
[1732070146300,2.1372,233.59,233.54,10.55547525]
[1732070146994,10.55547525,233.62,233.43,2.88]
[1732070147298,10.55547525,233.62,233.48,10.55547525]
[1732070147493,2.1375,233.55,233.49,2.138]
[1732070147699,10.55547525,233.62,233.49,2.138]
[1732070148001,10.55547525,233.62,233.48,10.55547525]
[1732070148186,8.10130903,233.63,233.43,2.88]
[1732070148187,10.55547525,233.59,233.45,10.55547525]
[1732070148898,10.55547525,233.59,233.46,2.1383]
[1732070150096,10.55547525,233.59,233.45,12.69387525]
[1732070150097,2.1379,233.51,233.45,12.69387525]
[1732070151002,2.88,233.55,233.45,12.69387525]
[1732070151196,2.88,233.55,233.42,10.55547525]
[1732070151500,2.88,233.55,233.39,15.35147525]
[1732070151691,10.55547525,233.52,233.39,15.35147525]
[1732070151895,10.55547525,233.49,233.15,2.08897713]
[1732070152106,10.55547525,233.46,233.32,10.55547525]
[1732070152598,10.55547525,233.46,233.35,2.1393]
[1732070152793,2.88,233.48,233.32,10.55547525]
[1732070153393,2.88,233.48,233.36,2.1392]
[1732070153394,2.1385,233.45,233.36,2.1392]
[1732070153594,2.10261222,233.47,233.32,10.55547525]
[1732070153800,2.10261222,233.47,233.29,13.62847525]
[1732070153801,10.55547525,233.46,233.29,13.62847525]
[1732070154108,2.1392,233.36,233.29,15.76827525]
[1732070154498,2.88,233.41,233.29,15.76827525]
[1732070154806,2.88,233.41,233.3,2.1398]
[1732070155201,2.139,233.39,233.3,2.1398]
[1732070155406,2.88,233.41,233.3,2.1398]
[1732070155912,2.88,233.41,233.29,13.62847525]
[1732070156103,2.88,233.41,233.33,10.70740525]
[1732070156309,2.88,233.46,233.36,10.55547525]
[1732070156510,2.1386,233.43,233.37,2.1391]
[1732070157410,2.1385,233.45,233.38,2.139]
[1732070157802,2.88,233.46,233.38,2.139]
[1732070158009,2.1385,233.44,233.36,10.55547525]
[1732070158205,2.1385,233.44,233.36,12.69467525]
[1732070158709,2.1385,233.44,233.36,10.55547525]
[1732070159011,2.88,233.46,233.33,3.03193]
[1732070159912,2.88,233.46,233.33,5.17143]
[1732070160505,2.88,233.46,233.35,12.69477525]
[1732070160809,2.88,233.46,233.35,10.55547525]
[1732070161711,2.1388,233.41,233.35,10.55547525]
[1732070162403,2.88,233.46,233.35,10.55547525]
[1732070162608,2.88,233.46,233.38,10.55547525]
[1732070163505,2.88,233.46,233.29,3.073]
[1732070163702,10.55547525,233.43,233.29,3.073]
[1732070164106,2.1394,233.35,233.29,3.073]
[1732070164301,10.55547525,233.43,233.29,3.073]
[1732070164302,2.88,233.39,233.29,3.073]
[1732070164709,2.1392,233.36,233.3,2.1398]
[1732070165105,2.88,233.39,233.29,13.62847525]
[1732070165911,2.1391,233.38,233.32,2.1396]
[1732070166110,2.88,233.39,233.32,10.55547525]
[1732070166306,2.88,233.44,233.35,10.55547525]
[1732070166507,10.55547525,233.49,233.35,10.55547525]
[1732070166508,2.88,233.45,233.35,10.55547525]
[1732070166708,2.1387,233.42,233.36,2.1392]
[1732070168017,2.88,233.48,233.38,10.55547525]
[1732070168613,2.1386,233.44,233.38,10.55547525]
[1732070169415,1.5512,233.51,233.41,2.1387]
[1732070169416,2.1382,233.47,233.41,2.1387]
[1732070169614,2.88,233.5,233.39,3.0413]
[1732070170409,2.1382,233.48,233.41,2.1388]
[1732070170610,2.88,233.5,233.41,2.1388]
[1732070171315,1.4914,233.61,233.47,10.55547525]
[1732070171511,10.55547525,233.62,233.47,10.55547525]
[1732070172015,10.55547525,233.62,233.48,2.1381]
[1732070172210,10.55547525,233.62,233.47,10.55547525]
[1732070172517,10.55547525,233.62,233.51,2.1378]
[1732070172813,2.88,233.64,233.45,2.88]
[1732070172814,2.88,233.64,233.5,10.55547525]
[1732070173018,2.1371,233.59,233.53,2.1377]
[1732070173215,2.88,233.64,233.5,10.55547525]
[1732070173716,2.1371,233.6,233.5,10.55547525]
[1732070173912,10.55547525,233.65,233.5,10.55547525]
[1732070174119,10.55547525,233.65,233.45,2.88]
[1732070174120,2.1369,233.62,233.54,2.1376]
[1732070174318,2.1369,233.62,233.53,10.55547525]
[1732070174509,2.1368,233.63,233.56,2.1374]
[1732070174917,13.43547525,233.68,233.53,10.55547525]
[1732070175608,10.55547525,233.62,233.51,4.6903]
[1732070176315,2.86,233.61,233.47,10.55547525]
[1732070176621,10.55547525,233.59,233.46,2.86]
[1732070176921,10.55547525,233.59,233.44,13.41547525]
[1732070177116,2.1376,233.54,233.46,2.1383]
[1732070177919,2.1376,233.54,233.47,2.1382]
[1732070178919,2.1373,233.57,233.5,2.1379]
[1732070179117,2.86,233.61,233.47,10.55547525]
[1732070182018,2.1376,233.54,233.47,12.69367525]
[1732070182824,2.1376,233.54,233.48,2.1381]
[1732070184022,2.86,233.61,233.47,10.55547525]
[1732070184219,10.55547525,233.59,233.44,10.55547525]
[1732070185324,1.4826,233.6,233.47,10.55547525]
[1732070186124,2.1377,233.53,233.47,10.55547525]
[1732070186526,2.138,233.51,233.44,12.69387525]
[1732070186820,1.4826,233.6,233.44,12.69387525]
[1732070187022,2.1381,233.49,233.44,10.55547525]
[1732070187222,1.4826,233.6,233.44,10.55547525]
[1732070189722,2.1375,233.56,233.44,10.55547525]
[1732070190019,10.55547525,233.52,233.35,2.1393]
[1732070190225,2.1386,233.43,233.36,10.72883525]
[1732070190626,5.01290996,233.51,233.36,10.72883525]
[1732070190826,2.1387,233.42,233.36,10.72883525]
[1732070191224,2.1387,233.42,233.36,12.86803525]
[1732070192527,2.86,233.51,233.36,10.72883525]
[1732070192733,2.86,233.51,233.39,12.69447525]
[1732070192936,2.86,233.51,233.39,10.55547525]
[1732070193238,10.55547525,233.58,233.42,10.55547525]
[1732070193440,2.86,233.57,233.45,10.55547525]
[1732070193735,2.1376,233.54,233.45,10.55547525]
[1732070193932,2.86,233.57,233.45,10.55547525]
[1732070194435,2.138,233.51,233.45,10.55547525]
[1732070195031,2.1377,233.53,233.48,10.55547525]
[1732070195231,2.86,233.56,233.48,10.55547525]
[1732070195533,1.0,233.59,233.48,10.55547525]
[1732070195730,2.1374,233.56,233.48,12.69357525]
[1732070195934,2.86,233.57,233.48,12.69357525]
[1732070196335,2.86,233.57,233.48,10.55547525]
[1732070196836,2.86,233.57,233.45,10.55547525]
[1732070197438,2.138,233.5,233.45,10.55547525]
[1732070197641,2.86,233.57,233.45,10.55547525]
[1732070197941,2.138,233.5,233.45,10.55547525]
[1732070198641,2.1379,233.52,233.45,10.55547525]
[1732070199740,2.1379,233.51,233.45,10.55547525]
[1732070200043,2.86,233.57,233.45,10.55547525]
[1732070201137,2.138,233.5,233.45,10.55547525]
[1732070201337,2.86,233.57,233.45,10.55547525]
[1732070201944,2.1381,233.49,233.45,10.55547525]
[1732070204244,2.1381,233.49,233.41,4.6946]
[1732070204245,13.41547525,233.57,233.42,10.55547525]
[1732070204839,2.1384,233.45,233.42,10.55547525]
[1732070205050,2.86,233.5,233.42,10.55547525]
[1732070205445,2.86,233.5,233.38,10.55547525]
[1732070206550,2.86,233.5,233.41,10.55547525]
[1732070206846,2.86,233.5,233.42,2.1387]
[1732070207253,2.1384,233.46,233.41,10.55547525]
[1732070208449,2.1382,233.47,233.41,12.69427525]
[1732070209450,2.86,233.5,233.41,10.55547525]
[1732070209748,2.86,233.5,233.38,10.55547525]
[1732070210147,4.97732338,233.5,233.36,1.67526]
[1732070210343,15.53279863,233.5,233.36,1.67526]
[1732070210646,10.55547525,233.47,233.36,0.17336]
[1732070211041,2.9943,233.49,233.36,0.17336]
[1732070211450,2.9943,233.49,233.35,10.55547525]
[1732070211451,2.1387,233.42,233.35,12.69467525]
[1732070212548,2.86,233.43,233.35,10.55547525]
[1732070213252,2.139,233.39,233.35,10.55547525]
[1732070213647,2.86,233.43,233.35,10.55547525]
[1732070215553,2.86,233.43,233.36,2.1392]
[1732070215750,1.5052,233.49,233.36,2.1392]
[1732070215953,2.86,233.48,233.36,2.1392]
[1732070216252,2.1386,233.43,233.36,2.1392]
[1732070216553,2.86,233.48,233.35,10.55547525]
[1732070217354,2.1389,233.4,233.35,10.55547525]
[1732070217948,2.1388,233.41,233.35,10.55547525]
[1732070218255,2.1388,233.41,233.34,2.1394]
[1732070219953,4.2743,233.6,233.35,10.55547525]
[1732070220157,2.86,233.51,233.38,10.55547525]
[1732070220753,2.1384,233.45,233.35,10.55547525]
[1732070221456,2.1384,233.45,233.39,2.139]
[1732070221655,13.41547525,233.51,233.38,10.55547525]
[1732070221853,2.1383,233.47,233.38,10.55547525]
[1732070222048,2.1383,233.47,233.39,4.5727]
[1732070222957,2.86,233.51,233.4,2.1389]
[1732070223258,13.41547525,233.51,233.39,4.5727]
[1732070223550,15.53215857,233.51,233.39,3.0406]
[1732070223758,15.53215857,233.51,233.32,10.55547525]
[1732070223759,2.1387,233.42,233.32,10.55547525]
[1732070223951,10.55547525,233.48,233.32,10.55547525]
[1732070224148,10.55547525,233.48,233.35,2.1393]
[1732070224149,2.1386,233.44,233.35,2.1393]
[1732070224352,10.55547525,233.48,233.35,2.1393]
[1732070224756,10.55547525,233.48,233.32,10.55547525]
[1732070226257,2.1387,233.42,233.32,10.55547525]
[1732070226450,10.55547525,233.48,233.32,10.55547525]
[1732070226855,2.1387,233.42,233.32,10.55547525]
[1732070227052,10.55547525,233.48,233.32,10.55547525]
[1732070228365,10.55547525,233.48,233.31,2.86]
[1732070228366,1.6087,233.5,233.35,10.55547525]
[1732070228664,2.86,233.49,233.38,10.55547525]
[1732070228866,2.1385,233.44,233.38,2.139]
[1732070229068,2.86,233.49,233.35,10.55547525]
[1732070229359,2.86,233.49,233.36,2.1392]
[1732070229666,10.55547525,233.48,233.32,10.55547525]
[1732070230166,10.55547525,233.48,233.35,2.1393]
[1732070230359,10.55547525,233.48,233.32,10.55547525]
[1732070230761,10.55547525,233.45,233.32,10.55547525]
[1732070230962,10.55547525,233.45,233.29,15.21227525]
[1732070231466,2.1392,233.37,233.29,15.21227525]
[1732070231664,10.55547525,233.45,233.29,15.21227525]
[1732070231665,13.41547525,233.42,233.29,4.6568]
[1732070231872,2.1391,233.38,233.29,4.6568]
[1732070232160,10.55547525,233.39,233.25,10.55547525]
[1732070232467,10.55547525,233.39,233.23,12.7982465]
[1732070232468,2.1399,233.29,233.23,12.7982465]
[1732070232964,2.86,233.34,233.19,10.55547525]
[1732070233169,2.1401,233.27,233.19,12.69627525]
[1732070233464,10.55547525,233.33,233.17,4.6379]
[1732070233669,10.55547525,233.3,233.17,4.6379]
[1732070235869,10.55547525,233.3,233.17,6.7788]
[1732070236072,10.55547525,233.3,233.17,2.1409]
[1732070236365,2.86,233.29,233.17,2.1409]
[1732070236872,2.86,233.29,233.15,10.55547525]
[1732070236873,2.86,233.29,233.16,3.7036]
[1732070237973,2.1403,233.25,233.17,2.141]
[1732070239569,2.1404,233.24,233.17,2.141]
[1732070245068,2.1403,233.25,233.18,2.1409]
[1732070245372,2.86,233.29,233.16,1.5626]
[1732070245968,2.1403,233.25,233.17,2.141]
[1732070246369,10.55547525,233.27,233.16,1.5626]
[1732070246671,2.1405,233.22,233.16,1.5626]
[1732070247469,10.55547525,233.27,233.12,10.55547525]
[1732070247675,10.55547525,233.27,233.16,2.141]
[1732070247971,10.55547525,233.27,233.1,1.5618]
[1732070248277,2.141,233.17,233.1,1.5618]
[1732070248575,2.86,233.21,233.1,1.5618]
[1732070248973,10.55547525,233.18,233.09,3.0483]
[1732070249269,10.55547525,233.18,233.02,10.55547525]
[1732070249669,10.55547525,233.18,233.03,1.4774]
[1732070250378,10.55547525,233.18,233.07,2.1419]
[1732070250575,10.55547525,233.18,233.05,10.55547525]
[1732070250772,10.55547525,233.18,233.04,5.2382]
[1732070250976,10.55547525,233.15,233.03,1.4774]
[1732070251176,3.70659456,233.26,232.95,10.55547525]
[1732070251177,10.55547525,233.09,232.95,10.55547525]
[1732070251376,2.86,233.08,232.95,10.55547525]
[1732070252673,10.55547525,233.03,232.67,12.85]
[1732070252875,10.55547525,233.03,232.87,10.55547525]
[1732070253469,10.55547525,233.03,232.81,3.0453]
[1732070253470,10.55547525,233.0,232.85,10.55547525]
[1732070253674,2.86,232.99,232.85,10.55547525]
[1732070253880,2.86,232.99,232.93,2.1431]
[1732070254180,10.55547525,233.06,232.93,2.1431]
[1732070254376,2.86,233.05,232.93,2.1431]
[1732070254579,10.55547525,233.06,232.91,10.55547525]
[1732070254776,2.1424,233.02,232.91,10.55547525]
[1732070254979,2.86,233.05,232.88,2.86]
[1732070255176,2.86,233.05,232.9,10.55547525]
[1732070255476,2.1426,233.0,232.91,2.1434]
[1732070255677,2.86,233.02,232.91,2.1434]
[1732070255983,2.86,233.02,232.9,10.55547525]
[1732070256681,2.1425,233.01,232.94,2.1431]
[1732070257880,2.86,233.02,232.81,3.0453]
[1732070258083,10.55547525,233.0,232.81,3.0453]
[1732070258382,10.55547525,232.97,232.84,10.55547525]
[1732070258682,10.55547525,233.0,232.87,2.1437]
[1732070259081,10.55547525,233.0,232.84,10.55547525]
[1732070260080,10.55547525,233.0,232.86,2.1438]
[1732070260277,10.55547525,233.0,232.84,10.55547525]
[1732070260580,10.55547525,233.0,232.87,10.55547525]
[1732070260989,2.1429,232.96,232.89,2.1435]
[1732070261181,10.55547525,233.0,232.89,2.1435]
[1732070261383,1.5608,233.01,232.9,10.55547525]
[1732070262281,2.1428,232.98,232.9,12.69887525]
[1732070262477,10.55547525,233.0,232.87,10.55547525]
[1732070262977,2.1431,232.95,232.88,2.1436]
[1732070263284,2.86,232.95,232.84,10.55547525]
[1732070264172,2.1431,232.94,232.87,2.1437]
[1732070264386,2.86,232.95,232.87,10.55547525]
[1732070264780,2.1431,232.94,232.87,10.55547525]
[1732070265277,2.86,232.95,232.84,12.69937525]
[1732070265783,2.1435,232.9,232.82,2.1441]
[1732070265976,10.55547525,232.94,232.79,10.55547525]
[1732070266172,10.55547525,232.91,232.76,12.10967525]
[1732070266773,10.55547525,232.88,232.76,10.55547525]
[1732070266924,2.84,232.87,232.76,10.55547525]
[1732070268188,2.144,232.85,232.76,10.55547525]
[1732070268683,2.84,232.87,232.76,10.55547525]
[1732070269184,2.84,232.87,232.79,10.55547525]
[1732070269689,4.9838,232.87,232.79,12.69987525]
[1732070270383,4.9838,232.87,232.79,10.55547525]
[1732070270687,4.9838,232.87,232.8,2.1444]
[1732070270888,2.1439,232.86,232.79,10.55547525]
[1732070271096,10.55547525,232.94,232.79,10.55547525]
[1732070271286,2.84,232.93,232.82,10.55547525]
[1732070271790,2.84,232.93,232.71,8.09273478]
[1732070271791,2.84,232.93,232.79,10.55547525]
[1732070272589,10.55547525,232.91,232.79,10.55547525]
[1732070272995,2.1437,232.88,232.79,10.55547525]
[1732070273195,10.55547525,232.91,232.79,10.55547525]
[1732070273590,2.84,232.93,232.82,10.55547525]
[1732070274595,2.1435,232.9,232.83,2.144]
[1732070275191,2.1434,232.92,232.85,12.69937525]
[1732070275494,2.84,232.94,232.85,10.55547525]
[1732070275689,4.9831,232.94,232.85,10.55547525]
[1732070275890,2.84,232.94,232.85,12.69937525]
[1732070276293,2.1433,232.92,232.82,10.55547525]
[1732070276494,2.84,232.94,232.84,2.144]
[1732070276694,2.84,232.94,232.82,10.55547525]
[1732070276895,2.1436,232.9,232.82,10.55547525]
[1732070277295,2.1436,232.9,232.83,2.1441]
[1732070277491,2.1436,232.9,232.82,10.55547525]
[1732070277999,2.1434,232.92,232.82,10.55547525]
[1732070278594,2.1434,232.91,232.84,2.144]
[1732070278803,2.84,232.94,232.82,10.55547525]
[1732070280397,2.1435,232.9,232.83,2.1441]
[1732070280903,2.84,232.94,232.82,10.55547525]
[1732070281104,2.84,232.93,232.82,10.55547525]
[1732070281303,10.55547525,232.91,232.71,5.25273478]
[1732070281498,10.55547525,232.91,232.78,10.55547525]
[1732070281701,2.1439,232.86,232.78,10.55547525]
[1732070283106,2.84,232.93,232.78,10.55547525]
[1732070283502,2.84,232.93,232.82,2.1442]
[1732070283503,2.1437,232.88,232.82,2.1442]
[1732070283705,2.84,232.93,232.81,10.55547525]
[1732070284304,2.1436,232.89,232.83,2.1441]
[1732070285111,2.1433,232.93,232.86,2.1438]
[1732070285317,4.9833,232.93,232.81,10.55547525]
[1732070285614,2.84,232.95,232.84,10.55547525]
[1732070285809,10.55547525,232.97,232.84,10.55547525]
[1732070286013,2.84,232.97,232.84,10.55547525]
[1732070286410,2.1433,232.92,232.85,2.1439]
[1732070286611,2.84,232.97,232.85,2.1439]
[1732070286812,2.84,232.97,232.84,10.55547525]
[1732070287114,2.1435,232.9,232.84,12.69947525]
[1732070287315,2.1435,232.9,232.84,10.55547525]
[1732070287618,2.1435,232.9,232.85,2.1439]